[Event "4NCL 2021-22"]
[Site "England"]
[Date "2022.04.30"]
[Round "7.74"]
[White "Ansell, Simon T"]
[Black "Richardson, John R"]
[Result "1/2-1/2"]
[ECO "B12"]
[WhiteElo "2432"]
[BlackElo "2261"]
[Annotator "TA"]
[PlyCount "131"]
[EventDate "2021.11.27"]
[EventType "team-tourn"]
[EventCountry "ENG"]
[SourceTitle "playchess.com"]
[Source "ChessBase"]
[SourceQuality "1"]
[TimeControl "40/6000+30:3000+30"]

{[%evp 14,131,36,59,50,-63,-65,-55,-47,-52,-48,-49,-7,-159,-176,-177,-175,-165,-163,-168,-162,-178,-171,-193,-185,-241,-215,-199,-204,-188,-197,-206,-199,-323,-341,-371,-341,-343,-344,-331,-341,-341,-320,-320,-286,-272,-252,-256,-260,-256,-252,-197,-209,-206,-144,-119,-53,-193,-136,-169,-159,-267,-131,-157,0,0,11,15,12,-64,14,23,54,0,152,145,170,155,160,133,129,147,135,114,94,87,92,74,101,151,137,0,0,0,0,0,0,0,281,241,247,83,81,-21,-29,-231,-236,-590,-545,-532,-22,-27,-25,-27,0,0,0,-40,0,0]} 1. e4 {[%emt 0:00:15]} c6 {[%emt 0:00:04]} 2. d4 {[%emt 0:00:26]} d5 {[%emt 0:00:02]} 3. e5 {[%emt 0:00:38]} Bf5 {[%emt 0:00:04]} 4. Nf3 {[%emt 0:00:49]} e6 {[%emt 0:00:03]} 5. Be2 {[%emt 0:00:47]} c5 {[%emt 0:00:06]} 6. Be3 {[%emt 0:04:45]} Qb6 {[%emt 0:00:58]} 7. Nc3 {[%emt 0:10:09]} Qxb2 {[%emt 0:00:30]} 8. Nb5 {[%emt 0:02:18] has lost popularity (8.Qb1).} c4 {[%emt 0:00:04] B12: Caro-Kann: Advance Variation.} 9. Nc7+ {[%emt 0:05:59]} ({White should play} 9. Rb1 $1 $14 Qxa2 10. Nc7+ Kd8 11. Nxa8 Bxc2 12. Ra1 (12. Rxb7 Bxd1 13. Rxb8+ Kd7 $11) 12... Bb4+ 13. Kf1) 9... Kd7 $15 {[%emt 0:07:04]} 10. Nxa8 {[%emt 0:01:21]} Bxc2 {[%emt 0:00:07] Black is slightly better.} 11. Qc1 {[%emt 0:00:59]} Ba3 {[%emt 0:00:37]} 12. O-O {[%emt 0:04:53]} Nc6 {[%emt 0:00:01]} 13. Qe1 $2 {[%emt 0:33:44]} (13. Ne1 $1 $11 Be4 14. Qd1) 13... Nge7 $17 {[%emt 0:12:59] [#]} 14. Bd2 $146 {[%emt 0:01:49]} ({Predecessor:} 14. Bc1 Qxa1 15. Bxa3 Qxe1 16. Rxe1 Rxa8 17. Bd1 Bxd1 18. Rxd1 f6 19. exf6 gxf6 20. Kf1 Rg8 21. h3 h5 22. g3 Nf5 23. Ke2 b6 24. Bb2 b5 {0-1 (24) Mossakowski,F (2304)-Hoffmann,L (2223) Germany 2014}) 14... Rxa8 {[%emt 0:06:47]} 15. Bc3 {[%emt 0:00:06]} Qb6 {[%emt 0:00:15]} 16. Qd2 {[%emt 0:00:06]} Be4 {[%emt 0:00:58]} 17. Ng5 {[%emt 0:00:47]} Bg6 {[%emt 0:00:11]} 18. h4 {[%emt 0:01:01]} h5 {[%emt 0:00:46]} 19. Qd1 {[%emt 0:11:22]} (19. Bd1 $142) 19... Bb2 {[%emt 0:03:34]} 20. Bxb2 {[%emt 0:03:53]} Qxb2 {[%emt 0:00:01]} 21. Bxh5 {[%emt 0:07:42]} Qxd4 {[%emt 0:00:24]} 22. Qxd4 {[%emt 0:03:14]} Nxd4 {[%emt 0:00:02]} 23. Bg4 {[%emt 0:00:58]} (23. Bxg6 $142 Nxg6 24. Rfd1) 23... Bd3 $19 {[%emt 0:09:33]} 24. Rfd1 {[%emt 0:00:13]} f6 {[%emt 0:01:05]} 25. exf6 {[%emt 0:00:56]} gxf6 {[%emt 0:00:02]} 26. Nf3 {[%emt 0:01:09] [#]} Rg8 $1 {[%emt 0:02:47]} 27. Nxd4 {[%emt 0:04:18]} Rxg4 {[%emt 0:00:04]} 28. Nb3 {[%emt 0:01:12]} Bc2 {[%emt 0:07:22]} (28... cxb3 29. Rxd3 b2 30. Rb1 $11) 29. Rd4 {[%emt 0:00:35]} Rg8 {[%emt 0:06:33]} (29... cxb3 $2 30. Rxg4 b2 31. Rf1 $19) 30. Nc5+ {[%emt 0:00:42]} Kd6 {[%emt 0:00:15]} 31. Nxb7+ {[%emt 0:00:21]} Kc6 {[%emt 0:00:18]} 32. Na5+ {[%emt 0:01:20]} Kc5 {[%emt 0:02:57][%mdl 1024] Black has strong compensation.} 33. Rd2 {[%emt 0:00:21]} Bf5 {[%emt 0:03:08] Hoping for ...Ng6.} 34. Rc1 {[%emt 0:00:33]} e5 {[%emt 0:08:07]} (34... Ng6 $17 35. Nb3+ Kb4) 35. Rb2 {[%emt 0:01:19]} (35. Nb7+ $15 Kc6 36. Na5+ Kb5 37. Nb7) 35... Bd3 {[%emt 0:06:27]} (35... Ng6 $19 36. Nb7+ Kd4) 36. Nb7+ {[%emt 0:02:32]} Kd4 {[%emt 0:01:37]} 37. Nd6 {[%emt 0:00:15]} (37. h5 $17) 37... Nc6 {[%emt 0:04:03]} (37... Ng6 $1 $19 {is more deadly. aiming for ...Nf4.} 38. g3 Nxh4) 38. f3 {[%emt 0:01:25]} e4 $2 {[%emt 0:02:10]} (38... a6 $1 $17 {White must now prevent ...c3.} 39. Kf2 Rd8) 39. fxe4 $11 {[%emt 0:00:39]} dxe4 {[%emt 0:00:52]} 40. Nf5+ {[%emt 0:00:09]} Kc5 {[%emt 0:01:40]} 41. Rb7 {[%emt 0:52:09]} (41. Kf2 $11) 41... Rg4 {[%emt 0:54:44]} (41... Nd4 $15 42. Nxd4 Kxd4) 42. Rc7 {[%emt 0:00:00]} Kb6 {[%emt 0:00:00]} 43. Rg7 {[%emt 0:00:00]} (43. Rh7 $14 Kc5 44. Ne3) 43... Rf4 $2 {[%emt 0:00:00]} (43... Rxg7 $11 44. Nxg7 e3) 44. Ne3 $1 $16 {[%emt 0:00:00] Strongly threatening Nd5+. White is more active.} Kc5 {[%emt 0:00:00] Prevents Nd5.} 45. g3 {[%emt 0:00:00]} Rf3 {[%emt 0:00:00] [#]} 46. h5 $1 {[%emt 0:00:00]} Rxe3 {[%emt 0:00:00]} 47. h6 {[%emt 0:00:00] h7 is the strong threat.} Nd4 {[%emt 0:00:00] And now ...Re2 would win.} 48. h7 {[%emt 0:00:00]} Ne2+ {[%emt 0:00:00]} 49. Kh2 {[%emt 0:00:00]} Nxc1 {[%emt 0:00:00]} 50. h8=Q {[%emt 0:00:00] White wants to mate with Qf8+.} Re2+ {[%emt 0:00:00]} 51. Kh3 {[%emt 0:00:00] Rd7 would kill now.} Rf2 {[%emt 0:00:00]} 52. Qf8+ {[%emt 0:00:00] The board is on fire.} (52. Qb8 $1 $16 {[%cal Rb8a7]} Bf1+ 53. Kh4) 52... Kd4 $1 $11 {[%emt 0:00:00]} 53. Rd7+ {[%emt 0:00:00]} Kc3 {[%emt 0:00:00]} 54. Qa3+ {[%emt 0:00:00]} ({Much worse is} 54. Rxa7 Kd2 55. Rc7 Bf1+ 56. Kh4 Nd3 $17) 54... Kc2 {[%emt 0:00:00]} 55. Qa4+ {[%emt 0:00:00]} Kd2 $2 {[%emt 0:00:00][%mdl 8192]} (55... Kc3 $11) 56. Qxc4 $1 $18 {[%emt 0:00:00]} ({Not} 56. Qxa7 e3 57. Re7 Bf1+ 58. Kg4 Be2+ 59. Kh3 Bf1+ 60. Kg4 Be2+ 61. Kh3 Bf1+ $11) 56... e3 {[%emt 0:00:00][%cal Be4e3,Be3e2][%mdl 32]} 57. Qb4+ $2 {[%emt 0:00:00]} (57. Qc5 $18) 57... Kd1 $16 {[%emt 0:00:16] [#]} 58. Qd4 {[%emt 0:04:14]} (58. Re7 $1 $16 {Threatens to win with Qd4.} Bf1+ 59. Kh4 Rh2+ 60. Kg4 Bh3+ 61. Kf3 Rf2+ 62. Kxe3 Re2+ 63. Kf3 Rf2+ 64. Kxf2 Nd3+ 65. Ke3 Nxb4 66. Rxa7) 58... Rd2 $11 {[%emt 0:04:47]} 59. Qa4+ $2 {[%emt 0:00:46]} (59. Qxf6 $11 {and White has nothing to worry.} e2 60. Re7 (60. Qf3 Bf5+ 61. Qxf5 e1=Q $17)) 59... Bc2 $19 {[%emt 0:02:15]} 60. Qg4+ {[%emt 0:01:22]} (60. Rxd2+ exd2 61. Qxa7) 60... e2 {[%emt 0:00:28]} 61. Re7 {[%emt 0:02:49] [#]} Nd3 $2 {[%emt 0:00:54]} ({Better is} 61... f5 $1 $19 {[%cal Rf5g4]} 62. Qc4 Be4) 62. Qd4 $11 {[%emt 0:02:37]} Bb1 {[%emt 0:03:15]} 63. Qa4+ {[%emt 0:01:07]} Bc2 {[%emt 0:09:07]} (63... Ke1 $5 {[%cal Re1f1]}) 64. Qd4 {[%emt 0:00:04]} Bb1 {[%emt 0:05:23]} 65. Qa4+ {[%emt 0:00:05]} Bc2 {[%emt 0:00:20]} (65... Ke1 $5 {[%cal Re1f1]}) 66. Qd4 {[%emt 0:02:17] White used his chance.  Weighted Error Value: White=0.42/Black=0.45} 1/2-1/2

[Event "4NCL 2021-22"]
[Site "England"]
[Date "2022.04.30"]
[Round "7.75"]
[White "Baker, Chris W"]
[Black "Bates, Richard A"]
[Result "0-1"]
[ECO "A48"]
[WhiteElo "2258"]
[BlackElo "2444"]
[Annotator "TA"]
[PlyCount "68"]
[EventDate "2021.11.27"]
[EventType "team-tourn"]
[EventCountry "ENG"]
[SourceTitle "playchess.com"]
[Source "ChessBase"]
[SourceQuality "1"]
[TimeControl "40/6000+30:3000+30"]

{[%evp 10,68,0,1,2,-11,21,0,16,-10,17,0,0,9,15,8,31,19,38,-83,-81,-74,-81,-75,-55,-82,-72,-81,-75,-136,-133,-210,-206,-230,-208,-196,-210,-245,-227,-220,-113,-117,-116,-191,-126,-245,-219,-534,-534,-543,-531,-531,-518,-543,-539,-727,-691,-681,-674,-812,-810]} 1. d4 {[%emt 0:00:30]} Nf6 {[%emt 0:00:20]} 2. Nf3 {[%emt 0:00:41]} g6 {[%emt 0:02:23]} 3. c3 {[%emt 0:02:30]} Bg7 {[%emt 0:00:12]} 4. Bf4 {[%emt 0:02:00]} O-O {[%emt 0:00:49]} 5. Nbd2 {[%emt 0:02:09]} d6 {[%emt 0:01:27]} 6. h3 {[%emt 0:02:19]} Nbd7 {[%emt 0:13:15] A48: 1 d4 Nf6 2 Nf3 g6: Torre, London and Colle Systems.} 7. Bh2 {[%emt 0:06:54] [#]} e6 $146 {[%emt 0:19:33]} ({Predecessor:} 7... b6 8. e4 e5 9. Bd3 Bb7 10. O-O Nh5 11. Re1 Bh6 12. Nc4 {½-½ (12) Berkes,F (2645)-Vovk,A (2641) Hungary 2017}) 8. Qb3 {[%emt 0:15:05]} Qe7 {[%emt 0:01:38] The position is equal.} 9. Qa3 {[%emt 0:09:06]} Qe8 {[%emt 0:07:53]} 10. e3 {[%emt 0:10:24]} e5 {[%emt 0:01:12]} 11. dxe5 {[%emt 0:01:21]} dxe5 {[%emt 0:02:39]} 12. Rd1 {[%emt 0:04:11]} Nd5 {[%emt 0:08:23]} 13. Bc4 {[%emt 0:06:39]} (13. Be2 $5 {[%cal Re1g1]}) 13... N5b6 {[%emt 0:06:27]} 14. e4 {[%emt 0:07:35]} (14. Be2 $14) 14... Nxc4 $17 {[%emt 0:04:16]} 15. Nxc4 {[%emt 0:00:05]} f6 {[%emt 0:04:09]} 16. O-O {[%emt 0:06:30]} Qf7 {[%emt 0:04:33]} 17. b3 {[%emt 0:08:03]} Re8 {[%emt 0:08:57]} 18. Ne3 {[%emt 0:11:02]} Bf8 {[%emt 0:01:26]} 19. b4 {[%emt 0:00:53]} (19. Qb2 $142) 19... Nb6 {[%emt 0:00:50][%cal Oa7a5,Bd7b6,Bb6c4,Bc4b2,Bb2d1][%mdl 32]} 20. Nd5 {[%emt 0:02:32]} (20. Qa5 $17 {might work better.}) 20... Be6 {[%emt 0:02:40]} 21. Qa5 {[%emt 0:03:01]} Nc4 {[%emt 0:06:40]} 22. Qb5 {[%emt 0:00:41]} Nb2 {[%emt 0:00:25]} 23. Qxb7 {[%emt 0:02:59]} Nxd1 {[%emt 0:00:56]} 24. Rxd1 {[%emt 0:00:18]} Bd6 {[%emt 0:02:30]} (24... Red8 $19 {Hoping for ...a5.} 25. a4 Rab8 26. Qxa7 Ra8) 25. Qc6 {[%emt 0:01:13]} Red8 {[%emt 0:03:18]} 26. a3 {[%emt 0:00:26] [#]} (26. Bg3 $17) 26... Kg7 {[%emt 0:01:23]} ({Better is} 26... a5 $1 $19 27. Bg3 axb4 28. axb4 Kg7) 27. c4 {[%emt 0:00:36]} (27. Qa6 $17 {keeps fighting.}) 27... a5 $19 {[%emt 0:01:52] And now ...Bd7 would win.} 28. c5 $2 {[%emt 0:00:39] [#]} (28. Nxf6 Qxf6 29. Bg3) 28... Bd7 $1 {[%emt 0:00:37] Black is clearly winning.} 29. Qb7 {[%emt 0:01:13] [#]} (29. Qxa8 Rxa8) 29... Rdb8 $1 {[%emt 0:00:13]} 30. Qxa8 {[%emt 0:00:39]} Rxa8 {[%emt 0:00:08]} 31. cxd6 {[%emt 0:00:04]} cxd6 {[%emt 0:00:56]} 32. Nb6 {[%emt 0:00:08] [#]} Qb3 $1 {[%emt 0:00:38][%csl LRa3,LRb4,LRd1][%mdl 512]} 33. Re1 {[%emt 0:00:47]} (33. Rf1 Bb5) 33... Ra7 {[%emt 0:00:35]} 34. bxa5 {[%emt 0:00:39]} Be6 {[%emt 0:00:17] Weighted Error Value: White=0.51/Black=0.14 (very precise)} 0-1

[Event "4NCL 2021-22"]
[Site "England"]
[Date "2022.04.30"]
[Round "7.76"]
[White "Duncan, Chris R"]
[Black "Ahluwalia, Amardip"]
[Result "1-0"]
[ECO "A34"]
[WhiteElo "2252"]
[BlackElo "2230"]
[Annotator "TA"]
[PlyCount "97"]
[EventDate "2021.11.27"]
[EventType "team-tourn"]
[EventCountry "ENG"]
[SourceTitle "playchess.com"]
[Source "ChessBase"]
[SourceQuality "1"]
[TimeControl "40/6000+30:3000+30"]

{[%evp 9,97,10,12,7,5,6,16,14,22,27,25,22,44,50,73,64,84,66,87,53,77,67,75,39,50,36,45,27,39,22,127,108,108,48,71,71,70,51,108,108,108,108,125,103,111,103,104,80,299,293,303,277,285,245,379,344,461,380,477,536,531,428,536,525,527,519,519,524,329,198,535,531,521,520,501,472,486,475,420,362,828,819,799,800,763,759,1395,1336,1184,1130]} 1. Nf3 {[%emt 0:03:12]} Nf6 {[%emt 0:01:03]} 2. c4 {[%emt 0:00:07]} c5 {[%emt 0:01:34]} 3. Nc3 {[%emt 0:00:42]} d5 {[%emt 0:02:19]} 4. cxd5 {[%emt 0:00:56]} Nxd5 {[%emt 0:00:09]} 5. e3 {[%emt 0:07:51]} Nc6 {[%emt 0:07:42]} 6. Bc4 {[%emt 0:00:00] A34: Symmetrical English: 2 Nc3, lines with ...d5.} Nxc3 {[%emt 0:07:33]} 7. dxc3 {[%emt 0:00:50] [#]} Qxd1+ $146 {[%emt 0:04:18]} ({Predecessor:} 7... Qc7 8. e4 e6 9. O-O Bd6 10. Qe2 O-O 11. Re1 Ne5 12. Nxe5 Bxe5 13. g3 {½-½ (13) Matsenko,S (2533)-Xiong,J (2650) Irving 2018}) 8. Kxd1 {[%emt 0:00:03] The position is equal.} Bg4 {[%emt 0:02:20]} 9. e4 {[%emt 0:01:32]} O-O-O+ {[%emt 0:09:33]} 10. Kc2 {[%emt 0:01:05]} Bxf3 {[%emt 0:03:55]} 11. gxf3 {[%emt 0:00:06]} Ne5 {[%emt 0:00:34]} 12. Be2 {[%emt 0:00:43]} e6 {[%emt 0:03:36]} 13. Be3 {[%emt 0:01:10]} Be7 {[%emt 0:04:47]} 14. Rhg1 {[%emt 0:07:03]} Rhg8 {[%emt 0:04:46]} 15. h4 {[%emt 0:03:33]} g6 {[%emt 0:05:44]} 16. a4 {[%emt 0:04:49]} Nd7 {[%emt 0:02:05]} 17. Bg5 {[%emt 0:09:54]} Rge8 {[%emt 0:08:57]} 18. a5 {[%emt 0:01:25]} Bxg5 {[%emt 0:04:49]} 19. hxg5 {[%emt 0:01:29]} Nf8 {[%emt 0:00:38]} (19... f6 $11) 20. Bc4 {[%emt 0:02:19]} Re7 {[%emt 0:07:35][%cal Be8e7,Be7d7,Bd7d8][%mdl 32]} 21. Rad1 {[%emt 0:01:15]} (21. a6 $16) 21... Rxd1 {[%emt 0:01:16]} 22. Rxd1 $14 {[%emt 0:00:07][%mdl 4096] Endgame KRB-KRN} Rd7 {[%emt 0:00:06]} 23. Rh1 {[%emt 0:01:42]} Kc7 {[%emt 0:01:21]} (23... e5 $14) 24. Bb5 $16 {[%emt 0:04:34]} Rd8 {[%emt 0:01:05]} 25. f4 {[%emt 0:15:28]} Kc8 {[%emt 0:03:47]} 26. Rh3 {[%emt 0:03:58] White is more active.} Kc7 {[%emt 0:01:51]} 27. e5 {[%emt 0:05:50]} Kc8 {[%emt 0:02:15]} 28. Rd3 {[%emt 0:05:52]} Nd7 $2 {[%emt 0:08:25] [#] A mistake that costs the game.} (28... a6 $16 {was worth a try.} 29. Ba4 Nd7) 29. Kb3 $1 $18 {[%emt 0:01:58] Threatens to win with Kc4.} a6 {[%emt 0:03:04]} 30. Bxd7+ {[%emt 0:05:11]} Rxd7 {[%emt 0:00:04] KR-KR} 31. Rh3 {[%emt 0:00:04]} Kd8 {[%emt 0:03:17]} (31... Kc7 $142 32. Rxh7 Kc6) 32. Rxh7 {[%emt 0:02:21]} Ke7 {[%emt 0:00:07] [#]} 33. Rh8 $1 {[%emt 0:03:26]} Rc7 {[%emt 0:00:19]} 34. Kc4 {[%emt 0:00:31]} Kd7 {[%emt 0:00:21]} 35. Rh1 {[%emt 0:06:58]} Ke7 {[%emt 0:00:12]} 36. Rd1 {[%emt 0:00:27]} Ke8 {[%emt 0:00:23]} 37. Rd6 {[%emt 0:03:04]} Ke7 {[%emt 0:00:05]} 38. b3 {[%emt 0:00:20]} Ke8 {[%emt 0:00:29]} 39. Rd3 {[%emt 0:03:55] And now Rh3 would win.} Ke7 $2 {[%emt 0:00:03]} (39... Kf8 {is more resistant.} 40. Rd8+ Ke7) 40. Rh3 {[%emt 0:00:13]} Ke8 {[%emt 0:00:19]} 41. Rh7 {[%emt 0:50:12][%cal Of4f5] aiming for f5!} Ke7 {[%emt 0:54:20]} 42. Rh2 {[%emt 0:03:56]} Ke8 {[%emt 0:00:24]} 43. Rh1 {[%emt 0:00:05]} Ke7 {[%emt 0:00:06]} 44. Rh7 {[%emt 0:00:09]} Ke8 $2 {[%emt 0:00:21]} (44... Rc8 45. Rh3 Kd7) 45. f5 {[%emt 0:00:30] White is clearly winning.} exf5 {[%emt 0:02:21]} 46. e6 {[%emt 0:00:50]} Rc6 {[%emt 0:01:39]} 47. exf7+ {[%emt 0:00:00]} Ke7 {[%emt 0:00:00]} 48. f8=Q+ {[%emt 0:03:15]} Kxf8 {[%emt 0:00:00]} 49. Rxb7 {[%emt 0:00:00] Weighted Error Value: White=0.12 (very precise) /Black=0.43} 1-0

[Event "4NCL 2021-22"]
[Site "England"]
[Date "2022.04.30"]
[Round "7.77"]
[White "Snape, Ian L"]
[Black "Webb, Laurence E"]
[Result "1/2-1/2"]
[ECO "E91"]
[WhiteElo "2201"]
[BlackElo "2256"]
[Annotator "TA"]
[PlyCount "93"]
[EventDate "2021.11.27"]
[EventType "team-tourn"]
[EventCountry "ENG"]
[SourceTitle "playchess.com"]
[Source "ChessBase"]
[SourceQuality "1"]
[TimeControl "40/6000+30:3000+30"]

{[%evp 16,93,77,59,76,57,72,43,52,29,74,12,26,21,23,25,16,17,38,-31,-31,-31,-34,-44,-43,-117,-121,-91,-91,-108,-99,-160,-19,-19,-19,-22,-26,-25,-18,-28,0,-12,0,0,0,0,0,0,0,-8,0,-8,-8,-15,0,-19,0,0,0,0,0,0,0,-16,-15,-16,-8,-9,0,0,0,0,0,0,0,0,0,0,0,0]} 1. Nf3 {[%emt 0:00:04]} Nf6 {[%emt 0:01:35]} 2. c4 {[%emt 0:00:47]} g6 {[%emt 0:00:20]} 3. Nc3 {[%emt 0:00:32]} Bg7 {[%emt 0:00:05]} 4. e4 {[%emt 0:00:04]} d6 {[%emt 0:00:06]} 5. d4 {[%emt 0:00:05]} O-O {[%emt 0:00:05]} 6. Be2 {[%emt 0:00:05]} c5 {[%emt 0:01:03]} 7. O-O {[%emt 0:01:23]} Nc6 {[%emt 0:00:40] Recently 7...Re8 got a lot of attention.} 8. d5 {[%emt 0:00:53]} Na5 {[%emt 0:00:21]} 9. Rb1 {[%emt 0:09:49]} Bd7 {[%emt 0:05:59] E91: King's Indian: Classical: 6 Be2, unusual replies including 6...c5 and 6...Bg4.} 10. a3 {[%emt 0:00:00] [#] Strongly threatening b4.} b6 $146 {[%emt 0:02:16]} ({Predecessor:} 10... Rc8 11. h3 b6 12. Bf4 h6 13. Bh2 Kh7 14. Qc2 a6 15. Rbd1 b5 16. cxb5 axb5 17. Bxb5 Bxb5 18. Nxb5 {1-0 (48) Hvenekilde,J (2231)-Jorgensen,A (2049) Copenhagen 2007}) 11. Nd2 {[%emt 0:01:22]} a6 {[%emt 0:02:23] White is slightly better.} 12. f4 {[%emt 0:04:11]} Rb8 {[%emt 0:05:13]} 13. a4 {[%emt 0:14:12] Against b5} (13. e5 $16 Ne8 14. b4) 13... Ne8 {[%emt 0:08:04]} 14. Qc2 {[%emt 0:08:36]} Nc7 {[%emt 0:00:49]} 15. b3 {[%emt 0:01:18]} b5 {[%emt 0:01:41]} 16. axb5 {[%emt 0:02:23]} (16. Bb2 {looks sharper.} e6 17. cxb5 axb5 18. dxe6 fxe6 19. axb5 d5 20. Na4) 16... axb5 {[%emt 0:00:51]} 17. cxb5 {[%emt 0:03:09]} (17. Bb2 $14) 17... Nxb5 $15 {[%emt 0:05:21]} 18. Nxb5 {[%emt 0:01:25]} Bxb5 {[%emt 0:00:14]} 19. Bxb5 {[%emt 0:01:27]} Rxb5 {[%emt 0:00:08]} 20. Bb2 {[%emt 0:03:33]} ({Better is} 20. Kh1 $15) 20... Bxb2 $17 {[%emt 0:04:13]} 21. Rxb2 {[%emt 0:00:59]} Qb6 {[%emt 0:00:41]} 22. Kh1 {[%emt 0:01:31]} Rb8 {[%emt 0:00:25]} 23. e5 {[%emt 0:02:58] [#]} ({White should play} 23. f5) 23... c4 {[%emt 0:23:35]} ({Weaker is} 23... Nxb3 24. Rfb1 Nd4 25. Rxb5 Nxb5 26. Qd3 $11) (23... Rb4 $1 $17 {Threatens to win with ...c4.} 24. exd6 Qxd6) 24. Nxc4 $11 {[%emt 0:03:52]} Nxc4 {[%emt 0:00:58]} 25. Qxc4 {[%emt 0:00:07]} Rxb3 {[%emt 0:05:03]} 26. Rxb3 {[%emt 0:12:18]} Qxb3 {[%emt 0:00:07][%mdl 4096] Endgame KQR-KQR} 27. Qc7 {[%emt 0:00:49][%csl LRd6,LRe7]} Qb1 {[%emt 0:15:06][%cal Rb1f1]} 28. Rc1 {[%emt 0:02:33] [#] The position is equal.} Rb7 $1 {[%emt 0:04:59]} 29. Qc8+ {[%emt 0:00:56]} ({Reject} 29. exd6 Rxc7 30. Rxb1 exd6 $15) 29... Kg7 {[%emt 0:00:07]} 30. exd6 {[%emt 0:03:59]} (30. e6 {is interesting.} Rb8 31. Qc3+ Kg8 32. h3) 30... exd6 {[%emt 0:00:39]} 31. Qc3+ $1 {[%emt 0:01:35]} f6 {[%emt 0:04:47]} 32. Qc6 {[%emt 0:07:43]} Qb4 {[%emt 0:04:01]} 33. h3 {[%emt 0:02:44]} Re7 {[%emt 0:04:50]} 34. Rf1 {[%emt 0:03:21]} h5 {[%emt 0:01:07]} 35. Qc2 {[%emt 0:06:57]} Qe4 {[%emt 0:03:13]} 36. Qc6 {[%emt 0:01:44]} Qd3 {[%emt 0:03:40]} 37. Kg1 {[%emt 0:03:01]} Qg3 {[%emt 0:03:27] ( -> ...Re2)} 38. Qc4 {[%emt 0:02:40] Against Re2} Qe3+ {[%emt 0:00:30]} 39. Kh1 {[%emt 0:01:32]} Qe2 {[%emt 0:00:40]} 40. Qc1 {[%emt 0:01:39]} h4 {[%emt 0:00:31]} 41. Qa1 {[%emt 0:03:33]} Qd3 {[%emt 0:03:37]} 42. Re1 {[%emt 0:02:45]} Rb7 {[%emt 0:16:14]} 43. Qa8 {[%emt 0:01:17]} Rb1 {[%emt 0:01:49]} 44. Qe8 {[%emt 0:01:20]} Rxe1+ {[%emt 0:01:51]} 45. Qxe1 {[%emt 0:00:06]} Qxd5 {[%emt 0:01:57]} 46. Qe7+ {[%emt 0:00:23]} Qf7 {[%emt 0:01:06]} 47. Qxd6 {[%emt 0:00:13] Weighted Error Value: White=0.15 (very precise) /Black=0.15 (very precise)} 1/2-1/2

[Event "4NCL 2021-22"]
[Site "England"]
[Date "2022.04.30"]
[Round "7.78"]
[White "Ledger, Dave J"]
[Black "Swindells, Jonathan E"]
[Result "1-0"]
[ECO "C54"]
[WhiteElo "2148"]
[BlackElo "2237"]
[Annotator "TA"]
[PlyCount "41"]
[EventDate "2021.11.27"]
[EventType "team-tourn"]
[EventCountry "ENG"]
[SourceTitle "playchess.com"]
[Source "ChessBase"]
[SourceQuality "1"]
[TimeControl "40/6000+30:3000+30"]

{[%evp 24,41,31,48,101,109,152,172,203,205,277,278,766,758,1068,850,1348,1319,29998,29999]} 1. e4 {[%emt 0:00:03]} e5 {[%emt 0:01:55]} 2. Nf3 {[%emt 0:00:30]} Nc6 {[%emt 0:00:32]} 3. Bc4 {[%emt 0:00:24]} Bc5 {[%emt 0:00:07]} 4. c3 {[%emt 0:00:40]} Nf6 {[%emt 0:01:56]} 5. d4 {[%emt 0:00:09]} exd4 {[%emt 0:00:04]} 6. e5 {[%emt 0:00:04]} d5 {[%emt 0:00:05]} 7. Bb5 {[%emt 0:00:04]} Ne4 {[%emt 0:00:11]} 8. cxd4 {[%emt 0:00:24]} Bb4+ {[%emt 0:00:16]} 9. Bd2 {[%emt 0:01:30]} Bxd2+ {[%emt 0:04:17]} 10. Nbxd2 {[%emt 0:00:15]} O-O {[%emt 0:00:53]} 11. O-O {[%emt 0:03:43]} Bd7 {[%emt 0:26:52]} 12. Bd3 {[%emt 0:06:24]} Nxd2 {[%emt 0:30:13]} 13. Qxd2 {[%emt 0:00:11]} Bg4 {[%emt 0:06:58] [#] C54: Giuoco Piano: 4 c3 Nf6, main lines with 5 d4 and 5 d3.} (13... f6 $14) 14. Ng5 $1 $16 {[%emt 0:20:45][%cal Bf3g5,Bg5h7,Bh7f6][%mdl 32]} h6 {[%emt 0:01:01]} 15. Nh7 {[%emt 0:09:18] White is much more active. The black rooks are badly placed.} Re8 {[%emt 0:02:25] White is clearly better.} 16. Qf4 {[%emt 0:18:32] [#]} Bd7 $146 {[%emt 0:15:15]} ({Predecessor:} 16... Be6 17. Rae1 Nb4 18. Bb1 Nxa2 19. Re3 Bd7 20. Nf6+ gxf6 21. Rg3+ Kf8 22. Qxh6+ Ke7 23. Qxf6+ Kf8 24. Qg7+ Ke7 25. f4 Rg8 26. Qf6+ Kf8 27. Rxg8+ Kxg8 {0-1 (27) Dixon Quiroz,L (1304)-Afonso,P (1542) Playchess.com INT 2020}) 17. Nf6+ {[%emt 0:03:41]} gxf6 $2 {[%emt 0:00:09]} (17... Kh8 18. Nxe8 Qxe8) 18. exf6 $18 {[%emt 0:01:32] [#] Qg3+ would kill now.} Re4 {[%emt 0:05:48]} 19. Bxe4 {[%emt 0:01:05] Intending Qg3+ and mate.} dxe4 {[%emt 0:00:05]} 20. Qg3+ {[%emt 0:00:15]} Kf8 {[%emt 0:00:05]} 21. Qg7+ {[%emt 0:01:10] Black got outplayed after the opening.  Weighted Error Value: White=0.05 (flawless) /Black=1.56} 1-0